[Event "DFMMLV 2024"]
[Site "Braunfels"]
[Date "2024.05.31"]
[Round "2.22"]
[White "Gheng, Simona"]
[Black "Mazurtsova, Margarita"]
[Result "1-0"]
[ECO "C10"]
[WhiteElo "1982"]
[BlackElo "1779"]
[Annotator "NA RC"]
[PlyCount "93"]
[EventDate "2024.05.30"]
[EventType "team-tourn"]
[EventCountry "GER"]
[SourceTitle "playchess.com"]
[Source "ChessBase"]
[SourceQuality "1"]
[TimeControl "40/5400+30:1800+30"]

1. e4 {[%emt 0:00:04]} e6 {[%emt 0:00:27]} 2. d4 {[%emt 0:00:11]} d5 {[%emt 0:00:26]} 3. Nd2 {[%emt 0:00:24]} dxe4 {[%emt 0:01:32]} 4. Nxe4 {[%emt 0:00:35]} Nd7 {[%emt 0:01:04]} 5. c3 {[%emt 0:00:50]} Ngf6 {[%emt 0:02:13]} 6. Bd3 {[%emt 0:02:17] C10: French with 3 Nc3: Unusual Black 3rd moves and 3...dxe4.} Nxe4 {[%emt 0:01:04]} 7. Bxe4 {[%emt 0:00:13]} Nf6 {[%emt 0:00:14]} 8. Bc2 {[%emt 0:00:22]} c5 {[%emt 0:00:23]} 9. Nf3 {[%emt 0:04:51]} Be7 {[%emt 0:03:26]} 10. O-O {[%emt 0:04:21]} h6 {[%emt 0:04:28]} 11. Qe2 {[%emt 0:05:47]} O-O {[%emt 0:02:42]} 12. Be3 {[%emt 0:00:47]} cxd4 {[%emt 0:04:02]} 13. Bxd4 {[%emt 0:00:42]} Bd7 {[%emt 0:11:26]} 14. Rad1 {[%emt 0:01:35]} Qc8 {[%emt 0:03:15]} 15. Ne5 {[%emt 0:14:41]} Bc6 {[%emt 0:04:15]} 16. Rfe1 {[%emt 0:03:15]} Rd8 {[%emt 0:03:55]} 17. Ng4 {[%emt 0:02:36]} Nxg4 {[%emt 0:08:12]} 18. Qxg4 {[%emt 0:00:08]} Bf8 {[%emt 0:01:18]} 19. Re3 {[%emt 0:02:23]} Rd5 {[%emt 0:02:54]} 20. h4 {[%emt 0:05:21]} h5 {[%emt 0:05:18]} 21. Qh3 $11 {[%emt 0:09:10]} (21. Qg3 $16) 21... Bc5 {[%emt 0:06:58]} 22. Bxc5 {[%emt 0:05:24]} Rxc5 {[%emt 0:00:39]} 23. Bb3 {[%emt 0:00:44]} Bd7 {[%emt 0:04:09]} 24. Red3 {[%emt 0:01:01]} Bb5 {[%emt 0:01:03]} 25. Rd6 {[%emt 0:02:54]} Rf5 {[%emt 0:02:32]} 26. Qe3 {[%emt 0:01:03]} Rf6 {[%emt 0:02:33]} 27. Qg5 {[%emt 0:01:37]} Bc6 {[%emt 0:01:20]} 28. Qxh5 {[%emt 0:01:46]} Qc7 {[%emt 0:02:10]} 29. Bc2 {[%emt 0:12:09]} Rh6 {[%emt 0:02:09]} 30. Qe5 {[%emt 0:00:51]} Qe7 {[%emt 0:01:11]} 31. g3 {[%emt 0:00:37]} Re8 {[%emt 0:01:09]} 32. R6d4 {[%emt 0:04:02]} Rf6 {[%emt 0:04:02]} 33. Be4 {[%emt 0:02:11]} Bxe4 {[%emt 0:01:18]} 34. Qxe4 {[%emt 0:00:08]} Qc5 {[%emt 0:01:45]} 35. Qxb7 {[%emt 0:02:33]} e5 {[%emt 0:00:14]} 36. R4d2 {[%emt 0:01:03]} e4 {[%emt 0:00:16]} 37. Qd5 {[%emt 0:01:29]} Qb6 {[%emt 0:00:33]} 38. Qd7 {[%emt 0:00:25]} Rfe6 {[%emt 0:01:23]} 39. Rd6 {[%emt 0:01:54]} Qxb2 {[%emt 0:00:29]} 40. Rxe6 {[%emt 0:00:54]} Rxe6 {[%emt 0:00:10]} 41. Qd8+ {[%emt 0:31:27]} Kh7 {[%emt 0:30:57]} 42. Qg5 {[%emt 0:00:48]} g6 {[%emt 0:03:16]} 43. Rd7 {[%emt 0:01:27]} Kg7 {[%emt 0:00:10]} 44. h5 {[%emt 0:00:32]} Qxc3 {[%emt 0:02:15]} 45. h6+ {[%emt 0:00:31]} Kg8 {[%emt 0:00:55]} 46. Qd8+ {[%emt 0:00:22]} Kh7 {[%emt 0:00:39]} 47. Rxf7+ {[%emt 0:00:05]} 1-0

[Event "DFMMLV 2024"]
[Site "Braunfels"]
[Date "2024.05.31"]
[Round "2.23"]
[White "Bazzazi, Elnaz"]
[Black "Heil, Marina"]
[Result "1-0"]
[ECO "C41"]
[WhiteElo "1840"]
[BlackElo "1900"]
[Annotator "NA RC"]
[PlyCount "47"]
[EventDate "2024.05.30"]
[EventType "team-tourn"]
[EventCountry "GER"]
[SourceTitle "playchess.com"]
[Source "ChessBase"]
[SourceQuality "1"]
[TimeControl "40/5400+30:1800+30"]

1. e4 {[%emt 0:00:05]} d6 {[%emt 0:00:05]} 2. d4 {[%emt 0:00:18]} Nf6 {[%emt 0:00:05]} 3. Nc3 {[%emt 0:00:04]} Nbd7 {[%emt 0:00:12]} 4. Nf3 {[%emt 0:00:22]} e5 {[%emt 0:00:26]} 5. h3 {[%emt 0:00:22]} Be7 {[%emt 0:00:38]} 6. Be3 {[%emt 0:00:34]} c6 {[%emt 0:00:17]} 7. Qd2 {[%emt 0:04:39]} Qc7 {[%emt 0:00:32]} 8. g4 {[%emt 0:01:05]} a6 {[%emt 0:01:50]} 9. g5 {[%emt 0:02:32]} Nh5 {[%emt 0:00:36]} 10. Be2 {[%emt 0:00:50]} g6 {[%emt 0:03:29]} 11. Nh2 {[%emt 0:01:07]} Ng7 {[%emt 0:01:38]} 12. Ng4 {[%emt 0:01:51]} f5 {[%emt 0:07:55]} 13. gxf6 {[%emt 0:05:15]} Nxf6 {[%emt 0:00:38]} 14. Nh6 {[%emt 0:03:56]} Ne6 {[%emt 0:08:25]} 15. d5 {[%emt 0:10:05]} Nc5 {[%emt 0:03:07]} (15... cxd5 $11 16. exd5 Nc5) 16. Bxc5 {[%emt 0:12:22]} dxc5 $14 {[%emt 0:00:10]} 17. O-O-O {[%emt 0:00:41]} b5 {[%emt 0:08:18]} 18. d6 {[%emt 0:01:04]} Qb8 {[%emt 0:05:42]} 19. dxe7 {[%emt 0:01:08]} Kxe7 {[%emt 0:00:06]} 20. Qe3 {[%emt 0:04:38]} Nd7 {[%emt 0:07:25]} 21. Bg4 {[%emt 0:05:21]} Kf8 {[%emt 0:06:01]} 22. Bxd7 {[%emt 0:00:31]} Bxd7 {[%emt 0:00:51]} 23. Qg5 {[%emt 0:00:30]} Kg7 {[%emt 0:00:30]} 24. Ng4 {[%emt 0:00:30]} 1-0

[Event "DFMMLV 2024"]
[Site "Braunfels"]
[Date "2024.05.31"]
[Round "2.25"]
[White "Miljkovic, Jovana"]
[Black "Rieseler, Caroline"]
[Result "1-0"]
[ECO "A16"]
[WhiteElo "2026"]
[BlackElo "2075"]
[Annotator "RC"]
[PlyCount "153"]
[EventDate "2024.05.30"]
[EventType "team-tourn"]
[EventCountry "GER"]
[SourceTitle "playchess.com"]
[Source "ChessBase"]
[SourceQuality "1"]
[TimeControl "40/5400+30:1800+30"]

1. Nf3 {[%emt 0:00:02]} Nf6 {[%emt 0:00:09]} 2. c4 {[%emt 0:00:06]} g6 {[%emt 0:00:04]} 3. Nc3 {[%emt 0:00:25]} Bg7 {[%emt 0:00:10]} 4. e4 {[%emt 0:00:18]} e5 {[%emt 0:00:19]} 5. Nxe5 {[%emt 0:01:10]} O-O {[%emt 0:00:06]} 6. Nf3 {[%emt 0:15:06]} Re8 {[%emt 0:00:08]} 7. d3 {[%emt 0:01:20]} d5 {[%emt 0:00:17]} 8. cxd5 {[%emt 0:06:25]} Nxd5 {[%emt 0:00:06]} 9. Nxd5 {[%emt 0:04:37]} Qxd5 {[%emt 0:00:05]} 10. Be2 {[%emt 0:02:24]} Qd6 {[%emt 0:01:50]} 11. O-O {[%emt 0:05:43]} c5 {[%emt 0:00:06]} 12. Qb3 {[%emt 0:05:48]} Nc6 {[%emt 0:01:19]} 13. h3 {[%emt 0:02:18]} h6 {[%emt 0:10:42]} 14. Bd2 {[%emt 0:10:55]} Be6 {[%emt 0:06:01]} 15. Qc2 {[%emt 0:02:38]} a5 {[%emt 0:06:58]} 16. Bc3 {[%emt 0:01:24]} Nd4 {[%emt 0:06:22]} 17. Bxd4 {[%emt 0:03:57]} Bxd4 {[%emt 0:12:39]} 18. Nxd4 {[%emt 0:00:38]} Qxd4 {[%emt 0:00:04]} 19. Qc3 {[%emt 0:01:37]} Rad8 {[%emt 0:03:54]} 20. Rfc1 {[%emt 0:02:53]} b6 {[%emt 0:00:19]} 21. a3 {[%emt 0:04:01]} a4 {[%emt 0:09:53]} 22. Bd1 {[%emt 0:06:52]} Re7 {[%emt 0:03:48]} 23. Qxd4 {[%emt 0:03:28]} Rxd4 {[%emt 0:00:07]} 24. Rc3 {[%emt 0:00:27]} Red7 {[%emt 0:03:51]} 25. Bc2 {[%emt 0:01:23]} g5 {[%emt 0:03:15]} 26. f3 {[%emt 0:00:42]} Kg7 {[%emt 0:06:50]} 27. Rc1 {[%emt 0:03:30]} Kf6 {[%emt 0:01:06]} 28. Kf2 {[%emt 0:00:22]} Ke5 {[%emt 0:00:14]} 29. Ke3 {[%emt 0:01:19]} f5 {[%emt 0:00:46]} 30. exf5 {[%emt 0:01:56]} Bxf5 {[%emt 0:03:10]} 31. Re1 {[%emt 0:02:24]} Kf6 {[%emt 0:02:44]} 32. b3 {[%emt 0:01:21]} Re7+ {[%emt 0:02:26]} 33. Kf2 {[%emt 0:00:47]} Rxe1 {[%emt 0:01:19]} 34. Kxe1 {[%emt 0:00:04]} axb3 {[%emt 0:00:22]} 35. Rxb3 {[%emt 0:00:11]} Rd6 {[%emt 0:00:12]} 36. Rc3 {[%emt 0:01:55]} h5 {[%emt 0:01:28]} 37. Kf2 {[%emt 0:02:00]} h4 {[%emt 0:01:57]} 38. Ke3 {[%emt 0:00:47]} Re6+ {[%emt 0:03:52]} 39. Kd2 {[%emt 0:00:31]} Ke5 {[%emt 0:02:18]} 40. Rc4 {[%emt 0:01:00]} Rd6 {[%emt 0:04:20]} 41. Ke3 {[%emt 0:33:46]} Rd4 {[%emt 0:33:10]} 42. Rc3 {[%emt 0:01:13]} Kd6 {[%emt 0:01:55]} 43. Bb3 {[%emt 0:00:42]} Bg6 {[%emt 0:00:00]} 44. Bc4 {[%emt 0:00:00]} Be8 {[%emt 0:00:00]} 45. Rb3 {[%emt 0:00:00]} Kc7 {[%emt 0:00:00]} 46. Rb2 {[%emt 0:00:00]} Bg6 {[%emt 0:00:00]} 47. Re2 {[%emt 0:00:00]} Kd6 {[%emt 0:00:00]} 48. Kd2 {[%emt 0:00:00]} Bxd3 {[%emt 0:00:00]} 49. Bxd3 {[%emt 0:00:00]} c4 {[%emt 0:00:00]} 50. Re3 {[%emt 0:00:00]} cxd3 {[%emt 0:00:00]} 51. Rxd3 {[%emt 0:00:00]} Ke5 {[%emt 0:00:00]} 52. Ke3 {[%emt 0:00:00]} Ra4 {[%emt 0:01:19]} 53. Rb3 {[%emt 0:00:00]} Ra6 {[%emt 0:00:12]} 54. Kf2 {[%emt 0:00:00]} Kf4 {[%emt 0:01:23]} 55. Rb4+ {[%emt 0:00:00]} Kf5 {[%emt 0:00:06]} 56. a4 {[%emt 0:00:00]} Kg6 {[%emt 0:01:11]} 57. g3 {[%emt 0:00:00]} hxg3+ {[%emt 0:00:47]} 58. Kxg3 {[%emt 0:00:00]} Kh5 {[%emt 0:00:49]} 59. h4 {[%emt 0:00:00]} gxh4+ {[%emt 0:00:07]} 60. Rxh4+ {[%emt 0:00:00]} Kg5 {[%emt 0:00:20]} 61. Rb4 {[%emt 0:00:00]} Kf5 {[%emt 0:00:18]} 62. f4 {[%emt 0:00:00]} Kg6 {[%emt 0:01:41]} 63. Kg4 {[%emt 0:00:00]} Kf6 {[%emt 0:00:14]} 64. f5 {[%emt 0:00:00]} Kf7 {[%emt 0:00:42]} 65. Kg5 {[%emt 0:00:00]} Kg7 {[%emt 0:00:15]} 66. Rc4 {[%emt 0:00:00]} Kf7 {[%emt 0:01:28]} 67. Rc7+ {[%emt 0:00:00]} Kf8 {[%emt 0:00:19]} 68. Kg6 {[%emt 0:00:13]} Rxa4 {[%emt 0:00:35]} 69. Rc8+ {[%emt 0:00:17]} Ke7 {[%emt 0:00:04]} 70. f6+ {[%emt 0:00:04]} Kd7 {[%emt 0:00:09]} 71. f7 {[%emt 0:00:49]} Rf4 {[%emt 0:01:58]} 72. f8=Q {[%emt 0:00:28]} Rxf8 {[%emt 0:00:09]} 73. Rxf8 {[%emt 0:00:02]} Kc6 {[%emt 0:00:23]} 74. Rf5 {[%emt 0:02:29]} b5 {[%emt 0:00:19]} 75. Re5 {[%emt 0:00:59]} Kb6 {[%emt 0:00:34]} 76. Kf5 {[%emt 0:00:20]} Ka5 {[%emt 0:00:05]} 77. Ke4 {[%emt 0:00:48]} 1-0

[Event "DFMMLV 2024"]
[Site "Braunfels"]
[Date "2024.05.31"]
[Round "2.26"]
[White "Ries, Jutta"]
[Black "Rieping, Lea"]
[Result "1/2-1/2"]
[ECO "A03"]
[WhiteElo "2025"]
[BlackElo "1966"]
[Annotator "NA RC"]
[PlyCount "52"]
[EventDate "2024.05.30"]
[EventType "team-tourn"]
[EventCountry "GER"]
[SourceTitle "playchess.com"]
[Source "ChessBase"]
[SourceQuality "1"]
[TimeControl "40/5400+30:1800+30"]

1. f4 {[%emt 0:00:03]} d5 {[%emt 0:00:59]} 2. Nf3 {[%emt 0:00:13]} Nf6 {[%emt 0:02:52]} 3. b3 {[%emt 0:00:14]} e6 {[%emt 0:04:16]} 4. Bb2 {[%emt 0:00:09]} Bd6 {[%emt 0:03:11]} 5. e3 {[%emt 0:01:10]} c5 {[%emt 0:00:50]} 6. Bb5+ {[%emt 0:01:39]} Bd7 {[%emt 0:00:53]} 7. Qe2 {[%emt 0:00:45]} Bxb5 {[%emt 0:01:11]} 8. Qxb5+ {[%emt 0:00:04]} Qd7 {[%emt 0:00:11]} 9. Nc3 {[%emt 0:03:41]} a6 {[%emt 0:02:55]} 10. Qe2 {[%emt 0:01:59]} Nc6 {[%emt 0:00:18]} 11. O-O {[%emt 0:00:17]} O-O-O {[%emt 0:07:39]} 12. Na4 {[%emt 0:03:55]} Qc7 {[%emt 0:01:12]} 13. Be5 {[%emt 0:04:50]} Bxe5 {[%emt 0:03:27]} 14. fxe5 {[%emt 0:01:48]} Nxe5 {[%emt 0:00:13]} 15. Nxe5 {[%emt 0:00:40]} Qxe5 $14 {[%emt 0:00:05]} 16. Nxc5 {[%emt 0:01:15]} d4 {[%emt 0:27:11]} 17. Qc4 {[%emt 0:32:01]} Qd5 {[%emt 0:00:29]} 18. Qxd5 {[%emt 0:05:52]} Rxd5 {[%emt 0:00:24]} 19. exd4 {[%emt 0:00:45]} Rxd4 {[%emt 0:00:09]} 20. d3 {[%emt 0:02:42]} Nd7 {[%emt 0:14:08]} 21. Ne4 {[%emt 0:01:59]} f6 {[%emt 0:00:43]} 22. Rae1 {[%emt 0:00:16]} e5 {[%emt 0:01:20]} 23. Re3 {[%emt 0:03:13]} Nb6 {[%emt 0:02:54]} 24. Rg3 {[%emt 0:07:28]} Rd7 {[%emt 0:00:37]} 25. Rf2 {[%emt 0:10:49]} Nd5 {[%emt 0:04:36]} 26. a3 {[%emt 0:11:43]} b6 {[%emt 0:03:26]} 1/2-1/2

[Event "DFMMLV 2024"]
[Site "Braunfels"]
[Date "2024.05.31"]
[Round "2.27"]
[White "Kramer, Helga"]
[Black "Reinecke, Katharina"]
[Result "1/2-1/2"]
[ECO "A37"]
[WhiteElo "2092"]
[BlackElo "1949"]
[Annotator "NA RC"]
[PlyCount "50"]
[EventDate "2024.05.30"]
[EventType "team-tourn"]
[EventCountry "GER"]
[SourceTitle "playchess.com"]
[Source "ChessBase"]
[SourceQuality "1"]
[TimeControl "40/5400+30:1800+30"]

1. c4 {[%emt 0:00:03]} c5 {[%emt 0:00:10]} 2. Nc3 {[%emt 0:01:06]} Nc6 {[%emt 0:00:17]} 3. g3 {[%emt 0:00:31]} g6 {[%emt 0:01:26]} 4. Bg2 {[%emt 0:00:11]} Bg7 {[%emt 0:01:26]} 5. Nf3 {[%emt 0:01:19]} e5 {[%emt 0:03:57]} 6. d3 {[%emt 0:01:58]} Nge7 {[%emt 0:01:01]} 7. O-O {[%emt 0:04:21]} O-O {[%emt 0:00:42]} 8. Ne1 {[%emt 0:01:41]} Rb8 {[%emt 1:25:31]} 9. Qa4 {[%emt 0:09:58]} d6 {[%emt 0:00:00]} 10. Nc2 {[%emt 0:07:10]} a5 {[%emt 0:00:00]} 11. Ne3 {[%emt 0:11:18]} Bd7 {[%emt 0:00:00]} 12. Qd1 {[%emt 0:03:06]} Nd4 {[%emt 0:00:00]} 13. a4 {[%emt 0:02:03]} f5 {[%emt 0:00:00]} 14. Ned5 {[%emt 0:01:02]} Nxd5 {[%emt 0:00:00]} 15. Nxd5 {[%emt 0:01:42]} Bc6 {[%emt 0:00:00]} 16. e3 {[%emt 0:03:25]} Ne6 {[%emt 0:00:00]} 17. Bd2 $11 {[%emt 0:01:27]} Kh8 {[%emt 0:00:00]} 18. Bc3 {[%emt 0:02:23]} b6 {[%emt 0:00:00]} 19. b3 {[%emt 0:03:32]} Nc7 {[%emt 0:00:00]} 20. Nxc7 {[%emt 0:01:04]} Qxc7 {[%emt 0:00:00]} 21. f4 {[%emt 0:00:55]} Bxg2 {[%emt 0:00:00]} 22. Kxg2 {[%emt 0:00:18]} exf4 {[%emt 0:00:00]} 23. Bxg7+ {[%emt 0:00:40]} Qxg7 {[%emt 0:00:00]} 24. exf4 {[%emt 0:02:26]} Rfe8 {[%emt 0:00:00]} 25. Qd2 {[%emt 0:01:35]} Re6 {[%emt 0:00:00]} 1/2-1/2

[Event "DFMMLV 2024"]
[Site "Braunfels"]
[Date "2024.05.31"]
[Round "2.29"]
[White "Aden, Dagmar"]
[Black "Werner, Rosalie"]
[Result "0-1"]
[ECO "C01"]
[WhiteElo "1875"]
[BlackElo "1937"]
[Annotator "RC"]
[PlyCount "114"]
[EventDate "2024.05.30"]
[EventType "team-tourn"]
[EventCountry "GER"]
[SourceTitle "playchess.com"]
[Source "ChessBase"]
[SourceQuality "1"]
[TimeControl "40/5400+30:1800+30"]

1. e4 {[%emt 0:00:56]} e6 {[%emt 0:00:07]} 2. d4 {[%emt 0:00:11]} d5 {[%emt 0:00:06]} 3. exd5 {[%emt 0:00:06]} exd5 {[%emt 0:00:07]} 4. c4 {[%emt 0:00:14]} Nf6 {[%emt 0:00:20]} 5. Nf3 {[%emt 0:00:37]} Be7 {[%emt 0:01:04]} 6. Bd3 {[%emt 0:01:49]} dxc4 {[%emt 0:01:28]} 7. Bxc4 {[%emt 0:00:19]} O-O {[%emt 0:01:22]} 8. O-O {[%emt 0:01:19]} Bg4 {[%emt 0:04:50]} 9. Be3 {[%emt 0:04:24]} Nbd7 {[%emt 0:01:58]} 10. Nc3 {[%emt 0:03:51]} Nb6 {[%emt 0:01:16]} 11. Bb3 {[%emt 0:02:09]} c6 {[%emt 0:00:47]} 12. Re1 {[%emt 0:03:06]} Nfd5 {[%emt 0:04:29]} 13. h3 {[%emt 0:04:44]} Bh5 {[%emt 0:01:39]} 14. g4 {[%emt 0:07:31]} Bg6 {[%emt 0:00:09]} 15. Ne5 {[%emt 0:00:44]} Qd6 {[%emt 0:25:48]} 16. Nxg6 {[%emt 0:04:25]} hxg6 {[%emt 0:06:15]} 17. Ne4 {[%emt 0:06:31]} Qc7 {[%emt 0:07:15]} 18. Qf3 {[%emt 0:09:11]} a5 {[%emt 0:04:50]} 19. Bxd5 {[%emt 0:09:17]} Nxd5 {[%emt 0:00:13]} 20. Nc3 {[%emt 0:00:40]} Rad8 {[%emt 0:02:36]} 21. Nxd5 {[%emt 0:03:32]} Rxd5 {[%emt 0:00:11]} 22. Rac1 {[%emt 0:01:44]} Rfd8 {[%emt 0:01:55]} 23. Qe4 {[%emt 0:05:03]} Qd7 {[%emt 0:03:26]} 24. Bf4 {[%emt 0:08:41]} Bb4 {[%emt 0:02:17]} 25. Red1 {[%emt 0:01:43]} Rxd4 {[%emt 0:01:28]} 26. Rxd4 {[%emt 0:00:14]} Qxd4 {[%emt 0:00:08]} 27. Qxd4 {[%emt 0:00:29]} Rxd4 {[%emt 0:00:05]} 28. Be3 {[%emt 0:03:20]} Rd5 {[%emt 0:12:56]} 29. a3 {[%emt 0:03:30]} Bd2 {[%emt 0:06:14]} 30. Rc2 {[%emt 0:02:17]} Bxe3 {[%emt 0:01:03]} 31. fxe3 {[%emt 0:00:13]} Kf8 {[%emt 0:02:24]} 32. h4 {[%emt 0:02:33]} Ke7 {[%emt 0:02:32]} 33. Kf2 {[%emt 0:00:42]} Ke6 {[%emt 0:01:00]} 34. Kf3 {[%emt 0:01:10]} Ke5 {[%emt 0:01:09]} 35. Rh2 {[%emt 0:04:03]} Rb5 {[%emt 0:02:09]} 36. Rd2 {[%emt 0:01:40]} Rd5 {[%emt 0:00:54]} 37. Rc2 {[%emt 0:01:02]} Rd6 {[%emt 0:01:28]} 38. Rc5+ {[%emt 0:00:49]} Rd5 {[%emt 0:00:06]} 39. Rc2 {[%emt 0:00:15]} Kd6 {[%emt 0:01:03]} 40. Kf4 {[%emt 0:02:16]} b5 {[%emt 0:00:40]} 41. e4 {[%emt 0:03:36]} Rd4 {[%emt 0:05:38]} 42. Ke3 {[%emt 0:02:09]} c5 {[%emt 0:00:59]} 43. Rf2 {[%emt 0:00:41]} f6 {[%emt 0:00:52]} 44. Kf4 {[%emt 0:06:58]} Ke6 {[%emt 0:12:08]} 45. Kf3 {[%emt 0:07:46]} Ke5 {[%emt 0:00:07]} 46. Re2 {[%emt 0:00:12]} c4 {[%emt 0:01:54]} 47. h5 {[%emt 0:01:52]} g5 {[%emt 0:01:27]} 48. Rh2 {[%emt 0:05:32]} Rd3+ {[%emt 0:01:54]} 49. Ke2 {[%emt 0:00:28]} Kxe4 {[%emt 0:01:05]} 50. h6 {[%emt 0:00:37]} gxh6 {[%emt 0:00:24]} 51. Rxh6 {[%emt 0:00:07]} Rd6 {[%emt 0:00:15]} 52. Rh8 {[%emt 0:00:37]} Kf4 {[%emt 0:00:13]} 53. Rb8 {[%emt 0:00:19]} Rd5 {[%emt 0:00:13]} 54. Rb6 {[%emt 0:00:45]} Kxg4 {[%emt 0:01:15]} 55. Rxf6 {[%emt 0:00:10]} Re5+ {[%emt 0:00:14]} 56. Kd2 {[%emt 0:01:11]} Kg3 {[%emt 0:00:24]} 57. Kc3 {[%emt 0:00:21]} Rd5 {[%emt 0:00:38]} 0-1

[Event "DFMMLV 2024"]
[Site "Braunfels"]
[Date "2024.05.31"]
[Round "2.30"]
[White "Blaschke, Franziska"]
[Black "Hielscher, Ursula"]
[Result "1/2-1/2"]
[ECO "B01"]
[WhiteElo "1915"]
[BlackElo "1829"]
[Annotator "RC"]
[PlyCount "109"]
[EventDate "2024.05.30"]
[EventType "team-tourn"]
[EventCountry "GER"]
[SourceTitle "playchess.com"]
[Source "ChessBase"]
[SourceQuality "1"]
[TimeControl "40/5400+30:1800+30"]

1. e4 {[%emt 0:00:03]} d5 {[%emt 0:00:05]} 2. exd5 {[%emt 0:00:06]} Nf6 {[%emt 0:00:05]} 3. d4 {[%emt 0:01:45]} Nxd5 {[%emt 0:00:12]} 4. c4 {[%emt 0:00:39]} Nb6 {[%emt 0:01:22]} 5. Be2 {[%emt 0:03:34]} Bf5 {[%emt 0:01:15]} 6. Nf3 {[%emt 0:01:19]} e6 {[%emt 0:01:28]} 7. O-O {[%emt 0:00:36]} Be7 {[%emt 0:01:17]} 8. Nc3 {[%emt 0:03:25]} O-O {[%emt 0:03:42]} 9. h3 {[%emt 0:06:23]} h6 {[%emt 0:03:39]} 10. Bf4 {[%emt 0:02:04]} N8d7 {[%emt 0:08:42]} 11. Rc1 {[%emt 0:03:55]} Re8 {[%emt 0:05:15]} 12. Nb5 {[%emt 0:03:23]} e5 {[%emt 0:11:31]} 13. Nxe5 {[%emt 0:05:43]} a6 {[%emt 0:08:01]} 14. Nxd7 {[%emt 0:03:01]} axb5 {[%emt 0:00:20]} 15. Nxb6 {[%emt 0:00:11]} cxb6 {[%emt 0:00:02]} 16. a3 {[%emt 0:01:33]} Bf6 {[%emt 0:04:26]} 17. Be3 {[%emt 0:00:55]} bxc4 {[%emt 0:03:54]} 18. Bxc4 {[%emt 0:01:20]} Qd7 {[%emt 0:04:25]} 19. Qd2 {[%emt 0:00:50]} b5 {[%emt 0:01:35]} 20. Bb3 {[%emt 0:02:01]} Re4 {[%emt 0:05:33]} 21. Bc2 {[%emt 0:03:41]} Rh4 {[%emt 0:00:58]} 22. Bxf5 {[%emt 0:03:48]} Qxf5 {[%emt 0:00:03]} 23. Rfd1 {[%emt 0:00:14]} Rd8 {[%emt 0:03:21]} 24. Qb4 {[%emt 0:02:06]} Qd7 {[%emt 0:04:35]} 25. Rd2 {[%emt 0:01:43]} Re4 {[%emt 0:06:39]} 26. Rcd1 {[%emt 0:01:17]} Rde8 {[%emt 0:00:50]} 27. Rd3 {[%emt 0:02:27]} Be7 {[%emt 0:02:19]} 28. Qd2 {[%emt 0:04:40]} Bd6 {[%emt 0:02:26]} 29. d5 {[%emt 0:03:08]} b4 {[%emt 0:01:22]} 30. axb4 {[%emt 0:09:28]} Bxb4 {[%emt 0:00:18]} 31. Qc2 {[%emt 0:03:33]} Rc8 {[%emt 0:03:52]} 32. Qb3 {[%emt 0:00:31]} Bd6 {[%emt 0:00:19]} 33. Rd4 {[%emt 0:01:01]} Ree8 {[%emt 0:01:08]} 34. Rc4 {[%emt 0:03:01]} Rxc4 {[%emt 0:01:15]} 35. Qxc4 {[%emt 0:00:07]} Rc8 {[%emt 0:00:40]} 36. Qd3 {[%emt 0:02:36]} Be5 {[%emt 0:01:00]} 37. Qb3 {[%emt 0:02:29]} Qc7 {[%emt 0:01:53]} 38. Kf1 {[%emt 0:05:08]} Qd7 {[%emt 0:03:02]} 39. Bd4 {[%emt 0:02:21]} Bxd4 {[%emt 0:00:29]} 40. Rxd4 {[%emt 0:00:22]} Rc1+ {[%emt 0:00:13]} 41. Ke2 {[%emt 0:33:39]} Qe8+ {[%emt 0:33:11]} 42. Kf3 {[%emt 0:01:59]} Qe5 {[%emt 0:01:50]} 43. Qd3 {[%emt 0:03:55]} Qh5+ {[%emt 0:02:37]} 44. Kg3 {[%emt 0:02:28]} Qe5+ {[%emt 0:00:00]} 45. f4 {[%emt 0:00:00]} Qd6 {[%emt 0:00:00]} 46. Kf3 {[%emt 0:00:00]} Rc5 {[%emt 0:00:00]} 47. g3 {[%emt 0:00:00]} Qd7 {[%emt 0:00:00]} 48. g4 {[%emt 0:00:00]} h5 {[%emt 0:00:00]} 49. d6 {[%emt 0:00:00]} hxg4+ {[%emt 0:00:00]} 50. hxg4 {[%emt 0:00:00]} b6 {[%emt 0:00:00]} 51. Qe4 {[%emt 0:00:00]} Rb5 {[%emt 0:00:00]} 52. b4 {[%emt 0:00:00]} f5 {[%emt 0:00:00]} 53. gxf5 {[%emt 0:00:00]} Rxf5 {[%emt 0:00:00]} 54. Rd2 {[%emt 0:00:00]} Rh5 {[%emt 0:00:00]} 55. Qd4 {[%emt 0:00:00]} 1/2-1/2